Cogmind - Beta 13 *** ADVENTURER MODE // 2024.03.12 @ 01:02:04 Player: Loganathor Result: Self-destructed Performance ------------- Evolutions (1) 500 Regions Visited (2) 400 Robots Destroyed (17) 85 Value Destroyed (349) 349 Prototype IDs (0) 0 Alien Tech Used (0) 0 Bonus (0) 0 TOTAL SCORE: 1334 Bonus ------- None Cogmind --------- Core Integrity 336/400 Matter 300/300 Energy 125/125 System Corruption 0% Temperature Cool (0) Movement Walking (120) Location -9/Materials Parts ------- > --- POWER (1) -------- Light Ion Engine > --- PROPULSION (4) --- Aluminum Leg Aluminum Leg Aluminum Leg Aluminum Leg > --- UTILITY (2) ------ Small Storage Unit Advanced Visual Processing Unit > --- WEAPON (2) ------- Katana > --- INVENTORY (8) ---- Aluminum Leg Aluminum Leg Medium Laser Small Laser Katana Peak State ------------ > --- POWER ------------ Light Ion Engine > --- PROPULSION ------- Aluminum Leg Aluminum Leg Aluminum Leg Aluminum Leg > --- UTILITY ---------- Small Storage Unit Advanced Visual Processing Unit > --- WEAPON ----------- Katana Katana > --- INVENTORY -------- Light Ion Engine Aluminum Leg Aluminum Leg Medium Laser Small Laser Shotgun [Rating: 15] Favorites ----------- Power Light Ion Engine Engine Light Ion Engine Propulsion Aluminum Leg Leg Aluminum Leg Wheel Wheel Utility Small Storage Unit Storage Small Storage Unit Processor Advanced Visual Processing Unit Weapon Katana Energy Gun Small Laser Ballistic Gun Shotgun Slashing Weapon Katana Build | -11 -10 -9 ------- Run | Yrd Mat Mat Slots Evolved 2 | . . 2 Power . | . . . Propulsion 2 | . . 2 Utility . | . . . Weapon . | . . . Parts Attached 19 | 8 2 9 Power 3 | 1 . 2 Engine 3 | 1 . 2 Core . | . . . Reactor . | . . . Propulsion 6 | 4 . 2 Treads . | . . . Leg 4 | 2 . 2 Wheel 2 | 2 . . Hover . | . . . Flight . | . . . Utility 4 | 1 2 1 Device . | . . . Storage 3 | 1 2 . Processor 1 | . . 1 Hackware . | . . . Protection . | . . . Artifact . | . . . Weapon 6 | 2 . 4 Energy Gun 1 | 1 . . Energy Cannon . | . . . Ballistic Gun 3 | 1 . 2 Ballistic Cannon . | . . . Launcher . | . . . Special Weapon . | . . . Impact Weapon . | . . . Slashing Weapon 2 | . . 2 Piercing Weapon . | . . . Special Melee Weapon . | . . . Unidentified Prototypes . | . . . Parts Lost 3 | . . 3 Power 2 | . . 2 Propulsion . | . . . Utility . | . . . Weapon 1 | . . 1 Highest Loss Streak 1 | . . 1 To Critical Strikes . | . . . Average Slot Usage (%) 93 | . 85 98 Engine 11 | . 14 10 Leg 38 | . 28 44 Storage 12 | . 14 11 Processor 7 | . . 10 Energy Gun 5 | . 14 1 Ballistic Gun 11 | . 14 10 Slashing Weapon 6 | . . 9 Naked Turns . | . . . Heaviest Build 13 | 11 11 13 Greatest Support 40 | 20 20 40 Greatest Overweight (x) . | . . . Average Overweight (x) . | . . . Largest Inventory Capacity 10 | 8 10 8 Average Capacity 7 | 6 8 8 Most Carried 8 | 8 7 7 Average Carried 5 | 4 5 5 Final Capacity 8 | 8 8 8 Final Carried 6 | 6 6 5 Class Distribution -------------------- 100% | Mutant Dominant Class ---------------- Mutant | -10/Materials Mutant | -9/Materials Resources | -11 -10 -9 ----------- Run | Yrd Mat Mat Matter Collected 462 | 207 103 152 Remotely . | . . . Salvage Created 427 | . 168 259 Parts 29 | . 11 18 Haulers Intercepted . | . . . Recyclers Shooed . | . . . Parts Field Recycled . | . . . Retrieved Matter . | . . . Parts Self-Destructed . | . . . Prevented . | . . . Kills | -11 -10 -9 ------- Run | Yrd Mat Mat Combat Hostiles Destroyed 17 | . 6 11 Melee 8 | . . 8 Guns 9 | . 6 3 Classes Destroyed 3 | . 2 1 Swarmer 10 | . 3 7 Grunt 6 | . 3 3 Sentry 1 | . . 1 Best Kill Streak 5 | . 3 5 Combat Bots Only 5 | . 3 5 Max Kills in Single Turn 1 | . 1 1 Gunslinging . | . . . Exploded . | . . . Melee 1 | . . 1 Uniques/NPCs Destroyed . | . . . Combat | -11 -10 -9 -------- Run | Yrd Mat Mat Hostile Shots Fired 135 | . 17 118 Missed 36 | . 3 33 Damage Taken 660 | . 93 567 Core 88 | . 24 64 Absorbed by Shields . | . . . Ignored by Resistances 214 | . 32 182 Core Remaining (%) 95 | 100 90 . Volleys Fired 23 | . 10 13 Largest 2 | . 2 1 Hottest 60 | . 60 23 Shots Fired 31 | . 18 13 Gun 31 | . 18 13 Cannon . | . . . Launcher . | . . . Special . | . . . Kinetic 23 | . 10 13 Thermal 8 | . 8 . Explosive . | . . . Electromagnetic . | . . . Robot Hit Streak 11 | . 11 9 Robot Miss Streak 2 | . 2 2 Penetration Max . | . . . Secondary Targets . | . . . Shots Hit Robots 47 | . 12 35 Core Hits 20 | . 8 12 Critical Kills . | . . . Critical Parts Destroyed . | . . . Critical Strikes 3 | . . 3 Sever 3 | . . 3 Melee Attacks 30 | . . 30 Impact . | . . . Slashing 30 | . . 30 Piercing . | . . . Sneak Attacks 1 | . . 1 Combat Hostiles . | . . . Follow-up Attacks . | . . . Damage Inflicted 1098 | . 143 955 Guns 305 | . 143 162 Cannons . | . . . Explosions . | . . . Melee 793 | . . 793 Ramming . | . . . Kinetic 263 | . 101 162 Thermal 42 | . 42 . Explosive . | . . . Electromagnetic . | . . . Impact . | . . . Slashing 793 | . . 793 Piercing . | . . . Highest Corruption . | . . . Average Corruption . | . . . Corruption Purged . | . . . Corruption Blocked . | . . . Overload Shots . | . . . Overflow Damage 69 | . . 69 Projectiles . | . . . Explosions . | . . . Melee 69 | . . 69 Knockbacks . | . . . Impact . | . . . Kinetic . | . . . Secondary . | . . . Self-Inflicted Damage . | . . . Shots . | . . . Rammed . | . . . Targets Rammed . | . . . Kicked . | . . . Crushed . | . . . Highest Temperature 24 | . 24 . Average Temperature 17 | . 17 . Received Heat Transfer 81 | . 36 45 Siege Activations . | . . . Robots Corrupted . | . . . Combat Hostiles . | . . . Parts Fried . | . . . Impact Corruptions . | . . . Robots Melted . | . . . Combat Hostiles . | . . . Parts Melted 1 | . 1 . Heat Transferred 100 | . 100 . Parts Sabotaged . | . . . Parts Stolen . | . . . Parts Stripped . | . . . Power Chain Reactions . | . . . Alert | -11 -10 -9 ------- Run | Yrd Mat Mat Peak Influence 376 | . 170 376 Initial 61 | . . 61 Average 132 | . 62 187 Maximum Alert Level 1 | . . 1 Low Security (%) 69 | 100 100 49 Level 1 30 | . . 50 Level 2 . | . . . Level 3 . | . . . Level 4 . | . . . Level 5 . | . . . High Security . | . . . Max Security . | . . . Squads Dispatched 3 | . 1 2 Investigation 1 | . 1 . Extermination . | . . . Reinforcement 2 | . . 2 Assault . | . . . Garrison . | . . . Intercept . | . . . Searches Triggered . | . . . Construction Impeded . | . . . Haulers Reinforced . | . . . Active Scanning Responses . | . . . Cargo Convoy Interrupts . | . . . Stealth | -11 -10 -9 --------- Run | Yrd Mat Mat Distress Signals 1 | . . 1 Communications Jammed . | . . . Distress Signals . | . . . Times Spotted 32 | . 7 25 Peak Tracking Total 6 | . 4 6 Tactical Retreats 4 | . . 4 Traps | -11 -10 -9 ------- Run | Yrd Mat Mat Traps Triggered 1 | . 1 . Indirectly . | . . . Trap Hack Attempts . | . . . Triggered . | . . . Disarmed . | . . . Reprogrammed . | . . . Reused . | . . . Traps Extracted . | . . . Installed . | . . . Triggered . | . . . Machines | -11 -10 -9 ---------- Run | Yrd Mat Mat Machines Disabled . | . . . Max in Single Turn . | . . . Machines Repaired . | . . . Machines Dismantled . | . . . Machines Sabotaged . | . . . Overloaded Fab Kills . | . . . Hacking | -11 -10 -9 --------- Run | Yrd Mat Mat Machines Accessed . | . . . Terminals . | . . . Fabricators . | . . . Repair Stations . | . . . Recycling Units . | . . . Scanalyzers . | . . . Garrison Access . | . . . Total Hacks . | . . . Successful . | . . . Failed . | . . . Catastrophic . | . . . Database Lockouts . | . . . Manual . | . . . Terminals . | . . . Fabricators . | . . . Repair Stations . | . . . Recycling Units . | . . . Scanalyzers . | . . . Garrison Access . | . . . Terminal Hacks . | . . . Fabricator Hacks . | . . . Repair Station Hacks . | . . . Recycling Unit Hacks . | . . . Scanalyzer . | . . . Garrison Access Hacks . | . . . Unauthorized Hacks . | . . . Terminals . | . . . Fabricators . | . . . Repair Stations . | . . . Recycling Units . | . . . Scanalyzers . | . . . Garrison Access . | . . . Data Cores Recovered . | . . . Used . | . . . Hacking Detections . | . . . Full Trace Events . | . . . Feedback Events . | . . . Feedback Blocked . | . . . Robot Schematics Acquired . | . . . Robots Built . | . . . Authchips . | . . . Time . | . . . Total Robot Build Rating . | . . . Part Schematics Acquired . | . . . Parts Built . | . . . Authchips . | . . . Time . | . . . Total Part Build Rating . | . . . Parts Repaired . | . . . Time . | . . . Parts Recycled . | . . . Recycled Matter . | . . . Retrieved Matter . | . . . Retrieved Components . | . . . Parts Scanalyzed . | . . . Part Schematics Acquired . | . . . Parts Damaged . | . . . Bothacking | -11 -10 -9 ------------ Run | Yrd Mat Mat Used RIF Installer . | . . . Robots Hacked . | . . . Non-combat . | . . . Combat . | . . . Robot Hacks Applied . | . . . Relay Couplers Released . | . . . Fabnet Peak Effective % . | . . . Robots Rewired . | . . . Allies Hacked . | . . . Hacks Repelled . | . . . Allies | -11 -10 -9 -------- Run | Yrd Mat Mat Total Allies . | . . . Largest Group . | . . . Highest-Rated Group . | . . . Highest-Rated Ally . | . . . Total Orders . | . . . Ally Attacks . | . . . Total Damage . | . . . Kills . | . . . Allies Corrupted . | . . . Allies Melted . | . . . Intel | -11 -10 -9 ------- Run | Yrd Mat Mat Robot Analysis Total . | . . . Derelict Logs Recovered . | . . . Drone Launches . | . . . Drone Recoveries . | . . . Exploration | -11 -10 -9 ------------- Run | Yrd Mat Mat Turns Passed 795 | 73 240 482 Spaces Moved 474 | 46 166 262 Core 7 | 7 . . Treads . | . . . Legs 452 | 24 166 262 Wheels 15 | 15 . . Hover . | . . . Flight . | . . . Fastest Speed 50 | 50 120 120 Average Speed 117 | 96 120 120 Slowest Speed 120 | 120 120 120 Overloaded Moves . | . . . Propulsion Burnouts . | . . . Robots Hopped . | . . . Cave-ins Triggered . | . . . Exploration Rate (%) 22 | 4 27 37 Regions Visited 2 Branch Regions . Pre-discovered Areas . | . . . Known Exits Taken . | . . . Unknown Exits Taken 2 | 1 1 . Scrap Searched . | . . . Spaces Dug . | . . . Terrain Destroyed . | . . . Melee . | . . . Projectile . | . . . AOE . | . . . Terrain Rammed . | . . . Walls Destroyed . | . . . Machines Disabled . | . . . Actions | -11 -10 -9 --------- Run | Yrd Mat Mat Total 635 | 72 192 371 Wait 63 | 9 4 50 Move 472 | 45 165 262 Hop . | . . . Pick Up 20 | 10 5 5 Fast Attach 2 | 2 . . Attach 13 | 4 2 7 Detach 2 | . 1 1 Swap 4 | 2 . 2 Drop 6 | . 5 1 Fire 23 | . 10 13 Melee 30 | . . 30 Ram . | . . . Kick . | . . . Crush . | . . . Escape Stasis . | . . . Rewire . | . . . Trap . | . . . Miscellaneous . | . . . Route ------- -11/Scrapyard -10/Materials -9/Materials History --------- Turn | Location | Event 30 | -11/Scrapyard | Discovered new exit (range 14) 74 | -11/Scrapyard | Entered Materials 243 | -10/Materials | Discovered new exit (range 14) 314 | -10/Materials | Entered another Materials area 314 | -9/Materials | Evolved 2 slots: Propulsion x2 355 | -9/Materials | Build established: Mutant 796 | -9/Materials | Self-destructed Last Messages --------------- K-01 Serf collects debris. G-34 Mercenary destroyed. Acquired 27 matter. G-34 Mercenary destroyed. Acquired 15 matter. R-06 Scavenger collects Aluminum Leg. R-06 Scavenger collects Heat Sink. R-06 Scavenger collects Aluminum Leg. R-06 Scavenger collects Ion Engine. Lgt. Ion Engine destroyed. S-10 Pest destroyed. Destroyed Flight Unit. S-10 Pest destroyed. Acquired 15 matter. S-10 Pest Lgt. Assault Rifle severed. S-10 Pest destroyed. R-06 Scavenger collects Flight Unit. R-06 Scavenger inserts Ion Engine into recycling unit. Acquired 6 matter. Shotgun destroyed. Map ----- +----------------------------------------------------+ | ?????????????????????????????????????????????????? | | ?????????????????????????????????????????????????? | | ?????????????????????????????????????????????????? | | ?????????????????????????????????????????????????? | | ?????????????????????????????????????????????????? | | ?????????????????????????????????????????????????? | | ?????????????????????????????????????????????????? | | ?????????????????????????????????????????????????? | | ?????????????????????????????????????????????????? | | ?????????????????????????????????????????????????? | | ?????????????????????????????????????????????????? | | ?????????????????????????????????????????????????? | | ?????????????????????????????????????????????????? | | ?????????????????????????????????????????????????? | | ??????????????????????????????????????? #????????? | | ?????????????????????????????????????? #????????? | | ???????????????????????############## #????????? | | ???????????????????????# k ????????? | | ???????????????????????# ??????????? | | ???????????????????????# "???????????? | | ???????????????????????? Y" #???????? | | ???????????????????????? "" #???????? | | ???????????????########## r #???????? | | ?????? ????????# # """ #???????? | | ???? ????????# =#* u """ #???????? | | ????" [????????# [s@ """ ###?????? | | ????" ????????# # """ ???? | | ????" ????????# # ?? ? | | ???? ????????# # r u ?? ? | | ????? ????????# # ############+##????? ? | | ????? ?????? + #sr #??????????????????? ? | | ??####+######### # #??????????????????? ? | | ??# #??#######/## #??????????????????? # | | ??# """" #????????# r #??????????????????# # | | ??# ""S"" ########## #?????????????????? # | | ??# "" "" + as #??????????????????# # | | ??# ##############/#####???????????????# # | | ??# % #????????# =%*#???????????????# # | | ??# #????????# """t""" #???????????????# # | | ??# #????????# """ """ #???????????????# # | | ??######+####????????# """ """ #?????????????### # | | ???????# #???????????# #????????###### | | ######## #???????????# ########## | | """ # #???????????# = / T | | "T" # ########????# [ ########## | | "" # #############+##????????# ## | | "" + # **[ #??# #?????????# ###### | | "" # # **[ #??# #?????????+ ???? | | # # * [ #??# #?????????# # #??? | | !!# # [ #??# #?????????# ###??? | +----------------------------------------------------+ Best States ------------- Heat Dissipation 28 Energy Generation 10 Energy Capacity 125 Matter Stores 300 Matter Capacity 300 Sight Range 20 Terrain Scan Density 10 Resistance: KI 20 Resistance: TH 20 Resistance: EX 20 Resistance: EM 20 Resistance: I 20 Resistance: S 20 Resistance: P 20 Evasion (%) 55 Offensive Hacking 10 Item Schematics ----------------- None Robot Schematics ------------------ None Fabricated ------------ Nothing Alien Tech Used ----------------- None Achievements -------------- None Challenges ------------ None Game ------ Seed BottomlessPiercingDrive Manual? 0 Play Time 00:15:48 Cumulative 5.4 hours Start 2024.03.12 @ 00:51:06 End 2024.03.12 @ 01:02:04 Sessions 1 Manual Loads 0 Difficulty Adventurer Special Mode None Game No. 13 Rogue 5 Adventurer 8 Explorer 0 Win Type - Total 0 Types 0/0/0/0/0/0/0/0/0 Lore% 9 Gallery% 15 Achievement% 13 Wizard Run 0 Options --------- Layout 1 ASCII 0 Keyboard 0 Movement Mouse Keybinds 0 Fullscreen 1 Font 32/SmallcapsGlow Map View 77x35 Zoom Use 0% Tactical HUD 0 Map Filters NONE Filters NONE Steam 1 RUN: ce2025ef-cfe2-4e61-bfff-3758d9199776